[Event "3. Open Bohumin 2020"]
[Site "Bohumin"]
[Date "2020.07.22"]
[Round "5.19"]
[White "Cempel, Jaroslav"]
[Black "Dziendziel, Mateusz"]
[Result "0-1"]
[ECO "B44"]
[WhiteElo "2045"]
[BlackElo "1768"]
[Annotator "NA"]
[PlyCount "58"]
[EventDate "2020.07.18"]
[EventType "swiss"]
[EventCountry "CZE"]
[SourceTitle "playchess.com"]
[Source "ChessBase"]
[SourceQuality "1"]
[TimeControl "40/5400+30:900+30"]

{[%evp 16,54,17,4,32767,32767,32767,32767,32767,-25,0,13,0,-4,32767,32767,-3,32767,32767,32767,32767,-23,-16,-21,-16,-115,-116,-126,-111,32767,-117,32767,32767,32767,-116,-117,-113,-125,-119,-409,-179]} 1. e4 {[%emt 0:00:00]} c5 {[%emt 0:00:00]} 2. Nf3 {[%emt 0:00:00]} e6 {[%emt 0:00:00]} 3. d4 {[%emt 0:00:03]} cxd4 {[%emt 0:00:00]} 4. Nxd4 {[%emt 0:00:10]} Nc6 {[%emt 0:00:00]} 5. Be3 {[%emt 0:00:11]} Qc7 {[%emt 0:00:17]} 6. c3 {[%emt 0:00:25] B44: Sicilian: Taimanov: 5 Nb5.} Nf6 {[%emt 0:00:23]} 7. Nd2 {[%emt 0:00:11]} d5 {[%emt 0:02:53]} 8. Bd3 {[%emt 0:00:17]} Ne5 {[%emt 0:10:05]} 9. Bb5+ {[%emt 0:01:01]} Bd7 {[%emt 0:00:10]} 10. Bxd7+ {[%emt 0:00:28]} Qxd7 {[%emt 0:01:16]} 11. exd5 {[%emt 0:00:30]} Nxd5 {[%emt 0:04:57]} 12. Qe2 {[%emt 0:05:41] [#]} Nxe3 $146 {[%emt 0:04:44]} ({Predecessor:} 12... Be7 13. O-O Ng6 14. N2f3 e5 15. Nb3 Nxe3 16. Qxe3 Qc7 17. Rfe1 f6 18. Re2 O-O {0-1 (80) Kruppa,V (1865)-Kovylin,K (2086) Berdsk 2011}) 13. Qxe3 {[%emt 0:01:52]} Nc6 {[%emt 0:00:31]} 14. N2b3 {[%emt 0:01:16]} Be7 {[%emt 0:06:09]} 15. O-O-O {[%emt 0:04:24]} O-O {[%emt 0:10:28]} 16. Nf5 {[%emt 0:03:28]} Qc7 {[%emt 0:00:09]} 17. Nxe7+ {[%emt 0:00:14]} Nxe7 {[%emt 0:00:10]} 18. Qc5 {[%emt 0:02:34]} Qf4+ {[%emt 0:00:22]} 19. Kb1 {[%emt 0:00:57]} Nd5 {[%emt 0:01:02]} 20. Rd4 {[%emt 0:00:52]} (20. Qd4 $11 {remains equal.}) 20... Qf5+ {[%emt 0:00:50]} 21. Ka1 {[%emt 0:00:30]} Rfc8 {[%emt 0:03:09]} 22. Qd6 {[%emt 0:02:11]} Qxf2 {[%emt 0:00:49]} 23. Rd2 {[%emt 0:00:30]} Qe3 {[%emt 0:01:06]} 24. Rhd1 {[%emt 0:00:50]} h6 {[%emt 0:17:20]} 25. Rd3 {[%emt 0:01:49]} Qe4 {[%emt 0:04:36]} 26. Nc5 {[%emt 0:00:47]} Qg6 {[%emt 0:04:22]} 27. Rg3 $2 {[%emt 0:01:02] [#]} (27. Nxb7 $17 {keeps fighting.} Rab8 28. Na5) 27... Qc2 $19 {[%emt 0:00:45]} (27... Qh5 $142 $1 {[%cal Rh5d1]} 28. Rxd5 exd5) 28. Rgd3 {[%emt 0:00:22]} Rc6 {[%emt 0:01:15]} 29. Rxd5 {[%emt 0:06:49]} exd5 {[%emt 0:00:53]} 0-1

[Event "3. Open Bohumin 2020"]
[Site "Bohumin"]
[Date "2020.07.23"]
[Round "6.6"]
[White "Mrazek, Lumir"]
[Black "Kubos, Rostislav"]
[Result "1/2-1/2"]
[ECO "A03"]
[WhiteElo "2327"]
[BlackElo "2134"]
[Annotator "ChessBase"]
[PlyCount "22"]
[EventDate "2020.07.18"]
[EventType "swiss"]
[EventCountry "CZE"]
[SourceTitle "playchess.com"]
[Source "ChessBase"]
[SourceQuality "1"]
[TimeControl "40/5400+30:900+30"]

1. f4 {[%emt 0:03:21]} d5 {[%emt 0:00:00]} 2. Nf3 {[%emt 0:00:05]} g6 {[%emt 0:00:00]} 3. g3 {[%emt 0:00:06]} Bg7 {[%emt 0:00:00]} 4. Bg2 {[%emt 0:00:04]} Nf6 {[%emt 0:00:42]} 5. O-O {[%emt 0:00:07]} O-O {[%emt 0:00:06]} 6. d3 {[%emt 0:01:05]} b6 {[%emt 0:05:52]} 7. c4 {[%emt 0:06:33]} c6 {[%emt 0:08:25]} 8. cxd5 {[%emt 0:03:47]} Nxd5 {[%emt 0:06:01]} 9. e4 {[%emt 0:03:02]} Nb4 {[%emt 0:03:05]} 10. Ne1 {[%emt 0:03:07]} Ba6 {[%emt 0:05:07]} 11. Rf3 {[%emt 0:00:35]} Qd4+ {[%emt 0:05:59]} 1/2-1/2

[Event "3. Open Bohumin 2020"]
[Site "Bohumin"]
[Date "2020.07.23"]
[Round "6.11"]
[White "Sramek, Vojtech"]
[Black "Panek, Bartosz"]
[Result "1-0"]
[ECO "C41"]
[WhiteElo "2178"]
[BlackElo "1988"]
[Annotator "ChessBase"]
[PlyCount "65"]
[EventDate "2020.07.18"]
[EventType "swiss"]
[EventCountry "CZE"]
[SourceTitle "playchess.com"]
[Source "ChessBase"]
[SourceQuality "1"]
[TimeControl "40/5400+30:900+30"]

1. e4 {[%emt 0:00:00]} d6 {[%emt 0:00:00]} 2. d4 {[%emt 0:00:00]} Nf6 {[%emt 0:00:00]} 3. Nc3 {[%emt 0:00:00]} e5 {[%emt 0:00:00]} 4. Nf3 {[%emt 0:00:00]} Nbd7 {[%emt 0:00:12]} 5. Bc4 {[%emt 0:00:04]} exd4 {[%emt 0:00:15]} 6. Nxd4 {[%emt 0:03:55]} Nb6 {[%emt 0:00:07]} 7. Bd3 {[%emt 0:07:36]} Be7 {[%emt 0:01:05]} 8. O-O {[%emt 0:00:09]} O-O {[%emt 0:00:08]} 9. f4 {[%emt 0:05:31]} Re8 {[%emt 0:02:09]} 10. Nf3 {[%emt 0:02:51]} c6 {[%emt 0:02:36]} 11. h3 {[%emt 0:03:04]} Qc7 {[%emt 0:02:59]} 12. Qe1 {[%emt 0:06:02]} Nbd7 {[%emt 0:03:33]} 13. Be3 {[%emt 0:05:59]} Nf8 {[%emt 0:01:41]} 14. Qf2 {[%emt 0:05:40]} Ng6 {[%emt 0:01:24]} 15. a4 {[%emt 0:09:37]} Qa5 {[%emt 0:25:28]} 16. Rae1 {[%emt 0:12:16]} Nd7 {[%emt 0:08:23]} 17. Ne2 {[%emt 0:13:01]} Qc7 {[%emt 0:14:41]} 18. Ng3 {[%emt 0:06:12]} b6 {[%emt 0:00:53]} 19. Bc4 {[%emt 0:01:54]} Bb7 {[%emt 0:02:15]} 20. e5 {[%emt 0:06:19]} d5 {[%emt 0:08:10]} 21. Bd3 {[%emt 0:00:06]} Bc5 {[%emt 0:05:45]} 22. Nh5 {[%emt 0:02:52]} Bxe3 {[%emt 0:01:10]} 23. Rxe3 {[%emt 0:00:17]} c5 {[%emt 0:00:32]} 24. c3 {[%emt 0:01:06]} d4 {[%emt 0:02:39]} 25. cxd4 {[%emt 0:00:25]} cxd4 {[%emt 0:04:51]} 26. Nxd4 {[%emt 0:00:07]} Ndxe5 {[%emt 0:00:07]} 27. fxe5 {[%emt 0:01:01]} Rxe5 {[%emt 0:02:53]} 28. Bxg6 {[%emt 0:01:15]} hxg6 {[%emt 0:00:08]} 29. Rxe5 {[%emt 0:01:15]} Qxe5 {[%emt 0:00:07]} 30. Qxf7+ {[%emt 0:00:25]} Kh8 {[%emt 0:00:54]} 31. Qxb7 {[%emt 0:00:05]} Qxd4+ {[%emt 0:00:09]} 32. Kh1 {[%emt 0:00:06]} Rd8 {[%emt 0:01:30]} 33. Nf4 {[%emt 0:01:01]} 1-0

[Event "3. Open Bohumin 2020"]
[Site "Bohumin"]
[Date "2020.07.23"]
[Round "6.13"]
[White "Pilch, Roman"]
[Black "Fialka, Adam"]
[Result "1-0"]
[ECO "D45"]
[WhiteElo "2168"]
[BlackElo "1842"]
[Annotator "ChessBase"]
[PlyCount "71"]
[EventDate "2020.07.18"]
[EventType "swiss"]
[EventCountry "CZE"]
[SourceTitle "playchess.com"]
[Source "ChessBase"]
[SourceQuality "1"]
[TimeControl "40/5400+30:900+30"]

1. Nf3 {[%emt 0:00:00]} d5 {[%emt 0:00:00]} 2. c4 {[%emt 0:00:00]} e6 {[%emt 0:00:00]} 3. d4 {[%emt 0:00:00]} Nf6 {[%emt 0:00:53]} 4. Nc3 {[%emt 0:00:00]} c6 {[%emt 0:03:08]} 5. e3 {[%emt 0:00:16]} Bd6 {[%emt 0:01:53]} 6. Bd3 {[%emt 0:00:09]} O-O {[%emt 0:00:08]} 7. e4 {[%emt 0:05:08]} dxe4 {[%emt 0:03:43]} 8. Nxe4 {[%emt 0:03:39]} Nxe4 {[%emt 0:05:51]} 9. Bxe4 {[%emt 0:00:08]} Bb4+ {[%emt 0:02:36]} 10. Bd2 {[%emt 0:01:39]} Qa5 {[%emt 0:05:22]} 11. O-O {[%emt 0:03:54]} Bxd2 {[%emt 0:00:20]} 12. Nxd2 {[%emt 0:13:49]} Nd7 {[%emt 0:04:32]} 13. Qc2 {[%emt 0:07:34]} Nf6 {[%emt 0:09:20]} 14. c5 {[%emt 0:03:59]} Qb4 {[%emt 0:10:34]} 15. Qc3 {[%emt 0:04:58]} Qxc3 {[%emt 0:03:04]} 16. bxc3 {[%emt 0:00:06]} e5 {[%emt 0:02:49]} 17. dxe5 {[%emt 0:03:30]} Nd7 {[%emt 0:00:28]} 18. f4 {[%emt 0:01:12]} Nxc5 {[%emt 0:00:28]} 19. Bc2 {[%emt 0:00:32]} b6 {[%emt 0:10:07]} 20. Ne4 {[%emt 0:03:03]} Nxe4 {[%emt 0:07:25]} 21. Bxe4 {[%emt 0:00:05]} Bb7 {[%emt 0:08:46]} 22. Rfd1 {[%emt 0:00:14]} Rfd8 {[%emt 0:01:14]} 23. Kf2 {[%emt 0:00:40]} Kf8 {[%emt 0:01:40]} 24. Ke3 {[%emt 0:01:05]} Ke7 {[%emt 0:00:25]} 25. Rd4 {[%emt 0:04:09]} Rxd4 {[%emt 0:05:21]} 26. cxd4 {[%emt 0:00:12]} f6 {[%emt 0:04:55]} 27. Rc1 {[%emt 0:00:40]} fxe5 {[%emt 0:01:55]} 28. fxe5 {[%emt 0:06:16]} Ke6 {[%emt 0:00:11]} 29. g4 {[%emt 0:04:45]} Rd8 {[%emt 0:02:20]} 30. Bxh7 {[%emt 0:06:59]} Rh8 {[%emt 0:01:27]} 31. Bf5+ {[%emt 0:00:59]} Kd5 {[%emt 0:00:38]} 32. Be4+ {[%emt 0:00:30]} Ke6 {[%emt 0:00:02]} 33. Rc2 {[%emt 0:00:54]} g5 {[%emt 0:00:32]} 34. Bxc6 {[%emt 0:02:04]} Ba6 {[%emt 0:00:06]} 35. Ke4 {[%emt 0:01:44]} Rh3 {[%emt 0:00:02]} 36. d5+ {[%emt 0:00:31]} 1-0

[Event "3. Open Bohumin 2020"]
[Site "Bohumin"]
[Date "2020.07.23"]
[Round "6.14"]
[White "Nytra, Ondrej"]
[Black "Petrov, Nikolaj"]
[Result "0-1"]
[ECO "B06"]
[WhiteElo "2150"]
[BlackElo "1743"]
[Annotator "ChessBase"]
[PlyCount "86"]
[EventDate "2020.07.18"]
[EventType "swiss"]
[EventCountry "CZE"]
[SourceTitle "playchess.com"]
[Source "ChessBase"]
[SourceQuality "1"]
[TimeControl "40/5400+30:900+30"]

1. e4 {[%emt 0:00:00]} d6 {[%emt 0:00:03]} 2. d4 {[%emt 0:00:00]} g6 {[%emt 0:00:19]} 3. Nc3 {[%emt 0:00:05]} Bg7 {[%emt 0:00:16]} 4. f4 {[%emt 0:00:06]} c6 {[%emt 0:00:31]} 5. Nf3 {[%emt 0:00:15]} Bg4 {[%emt 0:00:08]} 6. Be3 {[%emt 0:00:18]} Nd7 {[%emt 0:00:11]} 7. h3 {[%emt 0:00:45]} Bxf3 {[%emt 0:00:05]} 8. Qxf3 {[%emt 0:00:04]} e5 {[%emt 0:00:31]} 9. fxe5 {[%emt 0:01:29]} dxe5 {[%emt 0:00:03]} 10. Bc4 {[%emt 0:00:06]} Qe7 {[%emt 0:00:51]} 11. O-O {[%emt 0:01:00]} Ngf6 {[%emt 0:01:27]} 12. d5 {[%emt 0:00:12]} O-O {[%emt 0:01:07]} 13. dxc6 {[%emt 0:00:41]} bxc6 {[%emt 0:00:04]} 14. Bb3 {[%emt 0:00:02]} Nc5 {[%emt 0:04:12]} 15. Bc4 {[%emt 0:01:01]} Ne6 {[%emt 0:00:21]} 16. Rad1 {[%emt 0:00:38]} Nd7 {[%emt 0:07:15]} 17. Kh1 {[%emt 0:01:17]} Nb6 {[%emt 0:00:03]} 18. Bb3 {[%emt 0:00:06]} Rac8 {[%emt 0:04:22]} 19. a4 {[%emt 0:03:43]} Nd4 {[%emt 0:05:02]} 20. Bxd4 {[%emt 0:04:44]} exd4 {[%emt 0:00:25]} 21. Ne2 {[%emt 0:03:59]} c5 {[%emt 0:00:14]} 22. Ba2 {[%emt 0:13:30]} Nxa4 {[%emt 0:06:48]} 23. Nf4 {[%emt 0:00:01]} Nb6 {[%emt 0:01:07]} 24. Nd5 {[%emt 0:00:02]} Qd7 {[%emt 0:05:48]} 25. Nf6+ {[%emt 0:13:38]} Bxf6 {[%emt 0:00:54]} 26. Qxf6 {[%emt 0:00:01]} Rc6 {[%emt 0:03:14]} 27. Qe5 {[%emt 0:00:08]} Rc7 {[%emt 0:05:30]} 28. Rf6 {[%emt 0:13:50]} Qe7 {[%emt 0:03:07]} 29. Qg5 {[%emt 0:18:25]} Qxe4 {[%emt 0:03:03]} 30. Rdf1 {[%emt 0:00:48]} c4 {[%emt 0:02:19]} 31. R1f4 {[%emt 0:13:36]} Qe1+ {[%emt 0:02:01]} 32. Kh2 {[%emt 0:00:11]} Rd7 {[%emt 0:06:45]} 33. Rc6 {[%emt 0:08:58]} Rd5 {[%emt 0:03:52]} 34. Qg4 {[%emt 0:00:54]} Qe5 {[%emt 0:01:14]} 35. h4 {[%emt 0:01:50]} h5 {[%emt 0:01:23]} 36. Qg3 {[%emt 0:00:07]} Rc5 {[%emt 0:01:28]} 37. Rxc5 {[%emt 0:01:20]} Qxc5 {[%emt 0:00:03]} 38. Rf6 {[%emt 0:00:21]} Nd7 {[%emt 0:03:37]} 39. Ra6 {[%emt 0:00:39]} Ne5 {[%emt 0:00:52]} 40. b3 {[%emt 0:00:33]} Ng4+ {[%emt 0:01:10]} 41. Kh1 {[%emt 0:15:01]} Qb5 {[%emt 0:18:10]} 42. Rf6 {[%emt 0:01:04]} Nxf6 {[%emt 0:00:13]} 43. bxc4 {[%emt 0:00:01]} Qb2 {[%emt 0:00:25]} 0-1

[Event "3. Open Bohumin 2020"]
[Site "Bohumin"]
[Date "2020.07.23"]
[Round "6.15"]
[White "Trybus, Daniel"]
[Black "Grochol, Kamil"]
[Result "1-0"]
[ECO "B56"]
[WhiteElo "1950"]
[BlackElo "2023"]
[Annotator "ChessBase"]
[PlyCount "71"]
[EventDate "2020.07.18"]
[EventType "swiss"]
[EventCountry "CZE"]
[SourceTitle "playchess.com"]
[Source "ChessBase"]
[SourceQuality "1"]
[TimeControl "40/5400+30:900+30"]

1. e4 {[%emt 0:00:00]} c5 {[%emt 0:00:00]} 2. Nf3 {[%emt 0:00:00]} Nc6 {[%emt 0:00:00]} 3. d4 {[%emt 0:00:00]} cxd4 {[%emt 0:00:00]} 4. Nxd4 {[%emt 0:00:00]} Nf6 {[%emt 0:00:23]} 5. Nc3 {[%emt 0:00:00]} d6 {[%emt 0:00:10]} 6. f3 {[%emt 0:00:00]} e5 {[%emt 0:00:19]} 7. Nb3 {[%emt 0:00:00]} Be7 {[%emt 0:00:21]} 8. Be3 {[%emt 0:00:00]} O-O {[%emt 0:00:32]} 9. Qd2 {[%emt 0:00:00]} Be6 {[%emt 0:00:14]} 10. Nd5 {[%emt 0:02:50]} Bxd5 {[%emt 0:13:18]} 11. exd5 {[%emt 0:00:18]} Nb8 {[%emt 0:00:12]} 12. c4 {[%emt 0:05:52]} Nbd7 {[%emt 0:12:49]} 13. g4 {[%emt 0:04:23]} a5 {[%emt 0:17:11]} 14. O-O-O {[%emt 0:07:23]} a4 {[%emt 0:04:48]} 15. Na1 {[%emt 0:00:05]} Qa5 {[%emt 0:02:07]} 16. Nc2 {[%emt 0:09:42]} Nc5 {[%emt 0:09:34]} 17. Na3 {[%emt 0:03:57]} Rfc8 {[%emt 0:06:23]} 18. Qc2 {[%emt 0:03:40]} Ne8 {[%emt 0:10:02]} 19. Kb1 {[%emt 0:03:14]} Qd8 {[%emt 0:01:46]} 20. h4 {[%emt 0:04:17]} b6 {[%emt 0:14:53]} 21. g5 {[%emt 0:02:49]} Nc7 {[%emt 0:02:58]} 22. Bh3 {[%emt 0:01:35]} N7a6 {[%emt 0:02:26]} 23. Bf5 {[%emt 0:03:23]} g6 {[%emt 0:00:28]} 24. Bg4 {[%emt 0:01:54]} Rc7 {[%emt 0:00:25]} 25. Qd2 {[%emt 0:00:24]} Bf8 {[%emt 0:00:31]} 26. h5 {[%emt 0:00:33]} Bg7 {[%emt 0:00:33]} 27. Rh3 {[%emt 0:01:33]} Bh8 {[%emt 0:00:34]} 28. Rdh1 {[%emt 0:00:42]} Re7 {[%emt 0:00:28]} 29. Nb5 {[%emt 0:01:02]} Nc7 {[%emt 0:00:32]} 30. hxg6 {[%emt 0:01:16]} fxg6 {[%emt 0:00:10]} 31. Bxc5 {[%emt 0:01:59]} bxc5 {[%emt 0:00:45]} 32. Qh2 {[%emt 0:01:28]} Nxb5 {[%emt 0:00:36]} 33. Rxh7 {[%emt 0:00:22]} Na3+ {[%emt 0:00:24]} 34. Kc1 {[%emt 0:00:53]} Bg7 {[%emt 0:00:32]} 35. Rxg7+ {[%emt 0:00:08]} Rxg7 {[%emt 0:00:12]} 36. Qh8+ {[%emt 0:00:10]} 1-0

[Event "3. Open Bohumin 2020"]
[Site "Bohumin"]
[Date "2020.07.23"]
[Round "6.16"]
[White "Dziendziel, Mateusz"]
[Black "Lojek, Marek"]
[Result "0-1"]
[ECO "B00"]
[WhiteElo "1768"]
[BlackElo "2203"]
[Annotator "ChessBase"]
[PlyCount "68"]
[EventDate "2020.07.18"]
[EventType "swiss"]
[EventCountry "CZE"]
[SourceTitle "playchess.com"]
[Source "ChessBase"]
[SourceQuality "1"]
[TimeControl "40/5400+30:900+30"]

1. e4 {[%emt 0:00:00]} b6 {[%emt 0:00:00]} 2. g3 {[%emt 0:00:00]} Bb7 {[%emt 0:00:00]} 3. Bg2 {[%emt 0:00:00]} e6 {[%emt 0:00:14]} 4. d3 {[%emt 0:00:17]} Nf6 {[%emt 0:00:38]} 5. Nc3 {[%emt 0:01:00]} Be7 {[%emt 0:00:59]} 6. Nh3 {[%emt 0:03:19]} d5 {[%emt 0:02:11]} 7. O-O {[%emt 0:00:24]} O-O {[%emt 0:02:19]} 8. exd5 {[%emt 0:16:38]} Nxd5 {[%emt 0:02:24]} 9. Ne2 {[%emt 0:00:54]} Qc8 {[%emt 0:02:33]} 10. d4 {[%emt 0:11:12]} Rd8 {[%emt 0:04:58]} 11. c4 {[%emt 0:02:21]} Nf6 {[%emt 0:00:24]} 12. Qc2 {[%emt 0:03:52]} Bxg2 {[%emt 0:03:01]} 13. Kxg2 {[%emt 0:00:03]} Qb7+ {[%emt 0:00:36]} 14. f3 {[%emt 0:00:58]} Nbd7 {[%emt 0:00:26]} 15. Nf2 {[%emt 0:01:30]} a5 {[%emt 0:08:28]} 16. b3 {[%emt 0:05:59]} c5 {[%emt 0:04:22]} 17. dxc5 {[%emt 0:06:16]} Nxc5 {[%emt 0:00:14]} 18. Nc3 {[%emt 0:00:17]} Nfd7 {[%emt 0:07:35]} 19. Bf4 {[%emt 0:05:51]} g5 {[%emt 0:02:50]} 20. Be3 {[%emt 0:00:24]} Ne5 {[%emt 0:01:50]} 21. Nfe4 {[%emt 0:19:23]} g4 {[%emt 0:03:13]} 22. f4 {[%emt 0:05:48]} Nf3 {[%emt 0:02:38]} 23. Rxf3 {[%emt 0:11:34]} gxf3+ {[%emt 0:00:21]} 24. Kf1 {[%emt 0:00:36]} f5 {[%emt 0:02:06]} 25. Nxc5 {[%emt 0:01:49]} Bxc5 {[%emt 0:00:39]} 26. Bxc5 {[%emt 0:00:12]} bxc5 {[%emt 0:00:07]} 27. a4 {[%emt 0:00:26]} Rd7 {[%emt 0:00:30]} 28. Re1 {[%emt 0:00:45]} Qc6 {[%emt 0:00:58]} 29. Qf2 {[%emt 0:01:26]} Rad8 {[%emt 0:00:20]} 30. Qe3 {[%emt 0:01:06]} Rd3 {[%emt 0:00:13]} 31. Qe5 {[%emt 0:00:37]} Kf7 {[%emt 0:08:20]} 32. g4 {[%emt 0:00:32]} f2 {[%emt 0:00:28]} 33. Re2 {[%emt 0:00:28]} Qh1+ {[%emt 0:00:13]} 34. Kxf2 {[%emt 0:00:06]} Rf3# 0-1

[Event "3. Open Bohumin 2020"]
[Site "Bohumin"]
[Date "2020.07.23"]
[Round "6.17"]
[White "Czerw, Dawid"]
[Black "Polak, Radim"]
[Result "1-0"]
[ECO "D11"]
[WhiteElo "2287"]
[BlackElo "1810"]
[Annotator "RC"]
[PlyCount "91"]
[EventDate "2020.07.18"]
[EventType "swiss"]
[EventCountry "CZE"]
[SourceTitle "playchess.com"]
[Source "ChessBase"]
[SourceQuality "1"]
[TimeControl "40/5400+30:900+30"]

1. d4 {[%emt 0:00:15]} d5 {[%emt 0:00:20]} 2. c4 {[%emt 0:00:04]} c6 {[%emt 0:00:05]} 3. Nf3 {[%emt 0:00:04]} Nf6 {[%emt 0:00:09]} 4. e3 {[%emt 0:00:04]} e6 {[%emt 0:00:20]} 5. Bd3 {[%emt 0:01:15]} Nbd7 {[%emt 0:00:42]} 6. O-O {[%emt 0:00:12]} Bd6 {[%emt 0:00:25]} 7. Nc3 {[%emt 0:00:33]} O-O {[%emt 0:00:27]} 8. e4 {[%emt 0:00:21]} dxe4 {[%emt 0:00:03]} 9. Nxe4 {[%emt 0:00:07]} Nxe4 {[%emt 0:01:48]} 10. Bxe4 {[%emt 0:00:13]} Nf6 {[%emt 0:00:22]} 11. Bc2 {[%emt 0:00:32]} b6 {[%emt 0:03:08]} 12. Bg5 {[%emt 0:01:39]} Be7 {[%emt 0:00:54]} 13. Qd3 {[%emt 0:01:28]} g6 {[%emt 0:01:47]} 14. Ne5 {[%emt 0:01:53]} Bb7 {[%emt 0:01:09]} 15. Qf3 {[%emt 0:00:22]} Rc8 {[%emt 0:03:58]} 16. Ba4 {[%emt 0:08:10]} Nd7 {[%emt 0:07:23]} 17. Bxe7 {[%emt 0:00:20]} Qxe7 {[%emt 0:02:12]} 18. Nxc6 {[%emt 0:01:54]} Bxc6 {[%emt 0:02:21]} 19. Bxc6 {[%emt 0:00:07]} Qd6 {[%emt 0:00:50]} 20. Bxd7 {[%emt 0:02:02]} Qxd7 {[%emt 0:01:18]} 21. Qc3 {[%emt 0:00:07]} Rfd8 {[%emt 0:00:32]} 22. Rfd1 {[%emt 0:00:25]} Rc6 {[%emt 0:00:44]} 23. Rd3 {[%emt 0:01:55]} Rd6 {[%emt 0:01:57]} 24. Rad1 {[%emt 0:00:25]} Qa4 {[%emt 0:04:12]} 25. h4 {[%emt 0:04:34]} b5 {[%emt 0:03:15]} 26. b3 {[%emt 0:10:47]} Qa6 {[%emt 0:02:01]} 27. h5 {[%emt 0:03:24]} Qb7 {[%emt 0:13:06]} 28. hxg6 {[%emt 0:02:16]} fxg6 {[%emt 0:01:31]} 29. c5 {[%emt 0:02:56]} b4 {[%emt 0:04:10]} 30. Qe1 {[%emt 0:01:31]} Rc6 {[%emt 0:01:40]} 31. Re3 {[%emt 0:00:49]} Re8 {[%emt 0:02:29]} 32. Rc1 {[%emt 0:04:14]} Qb5 {[%emt 0:01:03]} 33. Rc4 {[%emt 0:01:30]} a5 {[%emt 0:00:37]} 34. Re5 {[%emt 0:00:22]} Kg7 {[%emt 0:02:26]} 35. Qe3 {[%emt 0:01:03]} a4 {[%emt 0:05:21]} 36. d5 {[%emt 0:01:06]} axb3 {[%emt 0:00:25]} 37. axb3 {[%emt 0:00:09]} Ra6 {[%emt 0:01:22]} 38. dxe6 {[%emt 0:03:50]} Ra1+ {[%emt 0:04:29]} 39. Kh2 {[%emt 0:00:17]} Qb8 {[%emt 0:01:21]} 40. Rf4 {[%emt 0:00:55]} Ra7 {[%emt 0:03:34]} 41. Qd4 {[%emt 0:16:00]} Kg8 {[%emt 0:18:21]} 42. Qd6 {[%emt 0:00:16]} Qc8 {[%emt 0:03:49]} 43. Rxb4 {[%emt 0:02:47]} Ra6 {[%emt 0:00:19]} 44. Rb6 {[%emt 0:00:30]} Ra2 {[%emt 0:01:40]} 45. Qd7 {[%emt 0:02:04]} Rxf2 {[%emt 0:02:19]} 46. Rb7 {[%emt 0:01:06]} 1-0

[Event "3. Open Bohumin 2020"]
[Site "Bohumin"]
[Date "2020.07.23"]
[Round "6.18"]
[White "Obrochta, Lena"]
[Black "Valencik, Jozef"]
[Result "0-1"]
[ECO "B90"]
[WhiteElo "1761"]
[BlackElo "2089"]
[Annotator "ChessBase"]
[PlyCount "96"]
[EventDate "2020.07.18"]
[EventType "swiss"]
[EventCountry "CZE"]
[SourceTitle "playchess.com"]
[Source "ChessBase"]
[SourceQuality "1"]
[TimeControl "40/5400+30:900+30"]

1. e4 {[%emt 0:00:00]} c5 {[%emt 0:00:00]} 2. Nf3 {[%emt 0:00:00]} d6 {[%emt 0:00:00]} 3. d4 {[%emt 0:00:00]} cxd4 {[%emt 0:00:00]} 4. Nxd4 {[%emt 0:00:00]} Nf6 {[%emt 0:00:04]} 5. Nc3 {[%emt 0:00:01]} a6 {[%emt 0:00:05]} 6. a4 {[%emt 0:00:59]} Nc6 {[%emt 0:01:49]} 7. Be2 {[%emt 0:01:25]} e5 {[%emt 0:01:17]} 8. Nb3 {[%emt 0:00:13]} Be6 {[%emt 0:00:51]} 9. O-O {[%emt 0:01:34]} Be7 {[%emt 0:00:31]} 10. Be3 {[%emt 0:00:27]} O-O {[%emt 0:01:13]} 11. f4 {[%emt 0:03:07]} Rc8 {[%emt 0:08:09]} 12. Bf3 {[%emt 0:10:09]} exf4 {[%emt 0:10:24]} 13. Bxf4 {[%emt 0:00:15]} Ne5 {[%emt 0:00:23]} 14. Kh1 {[%emt 0:05:51]} Qb6 {[%emt 0:02:57]} 15. a5 {[%emt 0:02:32]} Qc7 {[%emt 0:01:12]} 16. Qd4 {[%emt 0:03:53]} Rfd8 {[%emt 0:02:15]} 17. Rad1 {[%emt 0:00:42]} Bxb3 {[%emt 0:02:54]} 18. cxb3 {[%emt 0:00:13]} Qxa5 {[%emt 0:00:27]} 19. b4 {[%emt 0:05:50]} Qc7 {[%emt 0:00:49]} 20. Bg5 {[%emt 0:11:40]} Qc4 {[%emt 0:12:50]} 21. Qf2 {[%emt 0:17:49]} Nd3 {[%emt 0:08:24]} 22. Qd2 {[%emt 0:13:42]} Nxb2 {[%emt 0:05:26]} 23. Qxb2 {[%emt 0:00:46]} Qxc3 {[%emt 0:00:18]} 24. Qxc3 {[%emt 0:00:50]} Rxc3 {[%emt 0:00:07]} 25. e5 {[%emt 0:02:21]} dxe5 {[%emt 0:01:35]} 26. Bxb7 {[%emt 0:00:07]} Rxd1 {[%emt 0:09:31]} 27. Rxd1 {[%emt 0:00:29]} Ng4 {[%emt 0:00:44]} 28. Rc1 {[%emt 0:03:37]} Rxc1+ {[%emt 0:03:34]} 29. Bxc1 {[%emt 0:00:07]} Nf2+ {[%emt 0:00:47]} 30. Kg1 {[%emt 0:00:06]} Nd3 {[%emt 0:00:10]} 31. Bd2 {[%emt 0:00:52]} Bxb4 {[%emt 0:03:11]} 32. Bxa6 {[%emt 0:00:38]} Nc5 {[%emt 0:02:51]} 33. Bxb4 {[%emt 0:00:26]} Nxa6 {[%emt 0:00:01]} 34. Bc3 {[%emt 0:00:11]} f6 {[%emt 0:00:21]} 35. Kf2 {[%emt 0:00:39]} Kf7 {[%emt 0:00:14]} 36. Ke3 {[%emt 0:01:13]} Ke6 {[%emt 0:00:23]} 37. Ba5 {[%emt 0:00:31]} f5 {[%emt 0:01:02]} 38. g3 {[%emt 0:00:13]} Kd5 {[%emt 0:00:41]} 39. Bd8 {[%emt 0:00:19]} Nb4 {[%emt 0:01:15]} 40. h4 {[%emt 0:01:30]} Kc4 {[%emt 0:03:01]} 41. Ba5 {[%emt 0:16:07]} Nd5+ {[%emt 0:15:39]} 42. Ke2 {[%emt 0:00:53]} Kd4 {[%emt 0:02:09]} 43. Bd2 {[%emt 0:00:35]} Nc3+ {[%emt 0:02:04]} 44. Kf3 {[%emt 0:02:24]} Kd3 {[%emt 0:01:46]} 45. Be1 {[%emt 0:02:08]} Nd5 {[%emt 0:00:55]} 46. Ba5 {[%emt 0:00:23]} e4+ {[%emt 0:00:33]} 47. Kf2 {[%emt 0:00:09]} e3+ {[%emt 0:01:11]} 48. Ke1 {[%emt 0:00:08]} e2 {[%emt 0:00:53]} 0-1